fUST/lending_fUST_20250818
["ID","MTS","AMOUNT","RATE_DAILY","PERIOD"]
[380060663,1755522642273,-151.663043,0.0002291,7]
[380060664,1755522642282,-151.0,0.0002291,7]
[380060665,1755522642292,-155.119984,0.0002291,7]
[380060666,1755522642301,-151.0,0.0002291,7]
[380060667,1755522642310,-151.0,0.0002291,7]
[380060668,1755522642319,-285.413518,0.0002291,7]
[380060669,1755522642329,-285.413518,0.0002291,7]
[380060670,1755522642338,-151.0,0.0002291,7]
[380060671,1755522642348,-322.383977,0.0002291,7]
[380060672,1755522642359,-322.383977,0.0002291,7]
[380060673,1755522642369,-151.0,0.0002291,7]
[380060674,1755522642379,-151.0,0.0002291,7]
[380060675,1755522642389,-151.0,0.0002291,7]
[380060676,1755522642399,-151.0,0.0002291,7]
[380060677,1755522642408,-151.0,0.0002291,7]
[380060678,1755522642417,-151.0,0.0002291,7]
[380060679,1755522642427,-151.0,0.0002291,7]
[380060680,1755522642437,-151.0,0.0002291,7]
[380060681,1755522642446,-230.784068,0.0002291,7]
[380060682,1755522642455,-246.72608,0.0002291,7]
[380060683,1755522642465,-151.0,0.0002291,7]
[380060684,1755522642475,-151.0,0.0002291,7]
[380060686,1755522642484,-179223.65630533,0.0002291,2]
[380060687,1755522642494,-500.0,0.00022929,3]
[380060688,1755522642504,-500.0,0.00022929,3]
[380060689,1755522642513,-999.95203135,0.00022929,2]
[380060690,1755522642522,-461.68670903,0.0002293,3]
[380060691,1755522642532,-461.4979076,0.0002293,3]
[380060692,1755522642542,-460.0,0.0002293,3]
[380060693,1755522642551,-460.64807387,0.0002293,3]
[380060694,1755522642561,-480.0,0.0002293,3]
[380060695,1755522642570,-461.43280113,0.0002293,3]
[380060696,1755522642579,-463.46742437,0.0002293,3]
[380060697,1755522642593,-920.17,0.0002293,3]
[380060698,1755522642602,-461.84217586,0.0002293,3]
[380060699,1755522642613,-480.0,0.0002293,3]
[380060701,1755522642622,-603.45,0.0002293,3]
[380060702,1755522642632,-476.92,0.0002293,3]
[380060703,1755522642642,-460.74875237,0.0002293,3]
[380060705,1755522642651,-480.0,0.0002293,3]
[380060706,1755522642662,-461.92148031,0.0002293,3]
[380060707,1755522642671,-543.4,0.0002293,3]
[380060708,1755522642681,-1006.78726958,0.0002293,3]
[380060709,1755522642690,-460.46804685,0.0002293,3]
[380060710,1755522642699,-2204.27,0.0002293,3]
[380060712,1755522642709,-460.8878688,0.0002293,3]
[380060713,1755522642718,-462.19966622,0.0002293,3]
[380060714,1755522642728,-480.0,0.0002293,3]
[380060716,1755522642738,-460.0,0.0002293,3]
[380060717,1755522642747,-151.0,0.0002293,7]
[380060718,1755522642756,-461.57491001,0.0002293,3]
[380060719,1755522642766,-461.13670139,0.0002293,3]
[380060720,1755522642775,-480.0,0.0002293,3]
[380060721,1755522642785,-151.0,0.0002293,7]
[380060722,1755522642794,-151.0,0.0002293,7]
[380060723,1755522642804,-155.294016,0.0002293,7]
[380060724,1755522642814,-480.0,0.0002293,3]
[380060726,1755522642826,-543.3857986,0.0002293,3]
[380060729,1755522642836,-460.0,0.0002293,3]
[380060733,1755522642846,-465.84593299,0.0002293,3]
[380060735,1755522642856,-985.63,0.0002293,3]
[380060737,1755522642866,-480.0,0.0002293,3]
[380060739,1755522642876,-151.0,0.0002293,7]
[380060740,1755522642885,-480.0,0.0002293,3]
[380060742,1755522642894,-480.0,0.0002293,3]
[380060744,1755522642903,-480.0,0.0002293,3]
[380060746,1755522642913,-151.0,0.0002293,7]
[380060748,1755522642922,-160.8129855,0.00022932,2]
[380060749,1755522642932,-580.787823,0.00022932,2]
[380060751,1755522642942,-160.8129855,0.00022932,2]
[380060753,1755522642951,-580.787823,0.00022932,2]
[380060755,1755522642960,-160.8129855,0.00022932,2]
[380060757,1755522642969,-580.787823,0.00022932,2]
[380060759,1755522642979,-580.787823,0.00022932,2]
[380060761,1755522642988,-159.9274776,0.00022932,2]
[380060763,1755522642998,-580.787823,0.00022932,2]
[380060765,1755522643008,-580.787823,0.00022932,2]
[380060768,1755522643030,-580.787823,0.00022932,2]
[380060770,1755522643063,-580.787823,0.00022932,2]
[380060771,1755522643074,-481.18375,0.00022932,2]
[380060773,1755522643085,-151.0,0.00022932,7]
[380060775,1755522643095,-285.413518,0.00022932,7]
[380060777,1755522643105,-285.413518,0.00022932,7]
[380060779,1755522643115,-322.383977,0.00022932,7]
[380060781,1755522643124,-322.383977,0.00022932,7]
[380060783,1755522643135,-151.0,0.00022932,7]
[380060785,1755522643144,-151.0,0.00022932,7]
[380060787,1755522643154,-151.0,0.00022932,7]
[380060789,1755522643163,-495.58253823,0.00022942,3]
[380060791,1755522643172,-183.75994324,0.00022942,3]
[380060793,1755522643182,-266.23864965,0.00022943,2]
[380060795,1755522643192,-294.50621511,0.00022943,2]
[380060797,1755522643202,-480.0,0.00022945,3]
[380060799,1755522643212,-818.27,0.00022945,3]
[380060802,1755522643221,-480.0,0.00022945,3]
[380060805,1755522643230,-480.0,0.00022945,3]
[380060808,1755522643240,-336.96,0.00022946,3]
[380060811,1755522643249,-583.75,0.00022946,3]
[380060814,1755522643258,-6143.04,0.00022946,3]
[380060816,1755522643267,-350.96,0.00022946,3]
[380060819,1755522643277,-8378.93,0.00022946,3]
[380060822,1755522643286,-668.35,0.00022946,3]
[380060824,1755522643296,-1345.64,0.00022946,3]
[380060827,1755522643305,-524.51,0.00022946,3]
[380060829,1755522643314,-939.53,0.00022946,3]
[380060831,1755522643323,-1292.81,0.00022946,3]
[380060833,1755522643333,-480.0,0.00022946,3]
[380060835,1755522643342,-480.0,0.00022946,3]
[380060837,1755522643351,-2761.02,0.0002297,3]
[380060839,1755522643365,-3725.18,0.0002297,3]
[380060841,1755522643374,-480.0,0.0002297,3]
[380060843,1755522643383,-219.54012,0.0002297,7]
[380060844,1755522643393,-501.64242346,0.00022973,2]
[380060845,1755522643403,-371.91889676,0.00022973,2]
[380060846,1755522643412,-503.38329971,0.00022973,2]
[380060847,1755522643421,-493.15521029,0.00022973,2]
[380060848,1755522643430,-500.99347264,0.00022973,2]
[380060849,1755522643440,-503.38769744,0.00022973,2]
[380060850,1755522643449,-500.0,0.00022973,2]
[380060851,1755522643458,-504.46079045,0.00022973,2]
[380060852,1755522643468,-500.0,0.00022973,2]
[380060853,1755522643476,-500.39775222,0.00022973,2]
[380060854,1755522643486,-500.0,0.00022973,2]
[380060855,1755522643494,-500.0,0.00022973,2]
[380060856,1755522643504,-500.51423272,0.00022973,2]
[380060857,1755522643513,-171.95068442,0.00022973,2]
[380060858,1755522643522,-367.6759429,0.00022973,2]
[380060860,1755522643532,-500.0,0.00022973,2]
[380060861,1755522643542,-151.0,0.00022973,7]
[380060863,1755522643551,-151.0,0.00022973,7]
[380060865,1755522643560,-151.0,0.00022973,7]
[380060867,1755522643569,-151.0,0.00022973,7]
[380060868,1755522643578,-151.0,0.00022973,7]
[380060869,1755522643592,-153.027847,0.00022973,7]
[380060870,1755522643602,-212.251218,0.00022973,7]
[380060871,1755522643612,-151.0,0.00022973,7]
[380060872,1755522643621,-480.0,0.00022986,3]
[380060873,1755522643632,-480.0,0.00022986,3]
[380060874,1755522643641,-1366.12,0.00022986,3]
[380060875,1755522643651,-480.0,0.00022986,3]
[380060876,1755522643660,-218.59675233,0.00022986,3]
[380060877,1755522643670,-480.0,0.00022986,3]
[380060878,1755522643681,-480.0,0.00022986,3]
[380060879,1755522643690,-480.0,0.00022986,3]
[380060881,1755522643700,-480.0,0.00022986,3]
[380060882,1755522643709,-480.0,0.00022986,3]
[380060883,1755522643718,-221.27147818,0.00022986,3]
[380060885,1755522643727,-207.11034411,0.00022986,3]
[380060887,1755522643736,-480.0,0.00022986,3]
[380060889,1755522643746,-480.0,0.00022986,3]
[380060891,1755522643755,-480.0,0.00022986,3]
[380060893,1755522643765,-480.0,0.00022986,3]
[380060895,1755522643774,-480.0,0.00022986,3]
[380060897,1755522643783,-480.0,0.00022986,3]
[380060899,1755522643792,-480.0,0.00022986,3]
[380060901,1755522643801,-809.63,0.00022986,3]
[380060903,1755522643811,-461.26459633,0.00022986,3]
[380060905,1755522643820,-480.0,0.00022986,3]
[380060907,1755522643829,-480.0,0.00022986,3]
[380060909,1755522643839,-480.0,0.00022986,3]
[380060911,1755522643848,-480.0,0.00022986,3]
[380060913,1755522643859,-462.05948341,0.00022986,3]
[380060915,1755522643872,-480.0,0.00022986,3]
[380060917,1755522643882,-480.0,0.00022986,3]
[380060919,1755522643891,-460.0,0.00022986,3]
[380060921,1755522643900,-480.0,0.00022986,3]
[380060923,1755522643910,-607.11,0.00022986,3]
[380060925,1755522643919,-460.0,0.00022986,3]
[380060927,1755522643928,-1003.55437792,0.00022986,3]
[380060929,1755522643938,-507.03424574,0.00022986,3]
[380060931,1755522643947,-460.53029247,0.00022986,3]
[380060933,1755522643957,-461.27402997,0.00022986,3]
[380060935,1755522643966,-460.0,0.00022986,3]
[380060937,1755522643976,-460.0,0.00022986,3]
[380060939,1755522643985,-480.0,0.00022986,3]
[380060941,1755522643995,-460.63889554,0.00022986,3]
[380060943,1755522644005,-460.0,0.00022986,3]
[380060945,1755522644015,-461.61770183,0.00022986,3]
[380060947,1755522644024,-263.16303542,0.00022986,3]
[380060959,1755522644122,-460.0,0.00022986,3]
[380060961,1755522644131,-460.0,0.00022986,3]
[380060963,1755522644141,-460.0,0.00022986,3]
[380060964,1755522644150,-460.0,0.00022986,3]
[380060967,1755522644160,-500.0,0.00022986,3]
[380060968,1755522644170,-460.0,0.00022986,3]
[380060970,1755522644180,-472.68,0.00022986,3]
[380060972,1755522644189,-460.0,0.00022986,3]
[380060975,1755522644199,-460.0,0.00022986,3]
[380060976,1755522644209,-460.0,0.00022986,3]
[380060978,1755522644218,-460.0,0.00022986,3]
[380060981,1755522644228,-462.37499238,0.00022986,3]
[380060982,1755522644237,-480.0,0.00022986,3]
[380060985,1755522644247,-480.0,0.00022986,3]
[380060987,1755522644256,-568.05088357,0.00022986,3]
[380060989,1755522644265,-461.74952242,0.00022986,3]
[380060990,1755522644274,-462.33880687,0.00022986,3]
[380060992,1755522644283,-460.0,0.00022986,3]
[380060994,1755522644293,-460.56273078,0.00022986,3]
[380060996,1755522644302,-460.0,0.00022986,3]
[380060999,1755522644312,-460.45283102,0.00022986,3]
[380061001,1755522644322,-460.65718519,0.00022986,3]
[380061002,1755522644331,-460.56393747,0.00022986,3]
[380061004,1755522644340,-509.04227144,0.00022986,3]
[380061006,1755522644350,-460.50448823,0.00022986,3]
[380061008,1755522644360,-461.06019765,0.00022986,3]
[380061010,1755522644370,-461.10136554,0.00022986,3]
[380061012,1755522644379,-463.0593961,0.00022986,3]
[380061014,1755522644389,-480.0,0.00022986,3]
[380061016,1755522644398,-462.16780187,0.00022986,3]
[380061018,1755522644408,-460.0,0.00022986,3]
[380061020,1755522644417,-649.39,0.00022986,3]
[380061022,1755522644427,-463.08321196,0.00022986,3]
[380061024,1755522644437,-480.0,0.00022986,3]
[380061026,1755522644446,-578.17102332,0.00022986,3]
[380061028,1755522644455,-480.0,0.00022986,3]
[380061030,1755522644464,-460.45942864,0.00022986,3]
[380061032,1755522644474,-465.14014607,0.00022986,3]
[380061034,1755522644485,-460.0,0.00022986,3]
[380061036,1755522644494,-460.0,0.00022986,3]
[380061038,1755522644503,-460.0,0.00022986,3]
[380061040,1755522644512,-480.0,0.00022986,3]
[380061042,1755522644521,-548.93,0.00022986,3]
[380061044,1755522644530,-461.52613451,0.00022986,3]
[380061046,1755522644540,-460.83285674,0.00022986,3]
[380061048,1755522644549,-480.0,0.00022986,3]
[380061050,1755522644558,-480.0,0.00022986,3]
[380061052,1755522644568,-480.0,0.00022986,3]
[380061054,1755522644579,-480.0,0.00022986,3]
[380061056,1755522644590,-460.99860679,0.00022986,3]
[380061058,1755522644600,-460.0,0.00022986,3]
[380061060,1755522644612,-480.0,0.00022986,3]
[380061062,1755522644622,-480.0,0.00022986,3]
[380061064,1755522644631,-165.631951,0.00022986,7]
[380061066,1755522644641,-480.0,0.00022986,3]
[380061068,1755522644650,-583.56,0.00022986,3]
[380061071,1755522644663,-480.0,0.00022986,3]
[380061073,1755522644673,-480.0,0.00022986,3]
[380061075,1755522644682,-480.0,0.00022986,3]
[380061076,1755522644691,-480.0,0.00022986,3]
[380061079,1755522644701,-461.44733882,0.00022986,3]
[380061081,1755522644711,-480.0,0.00022986,3]
[380061083,1755522644720,-285.413518,0.00022986,7]
[380061085,1755522644729,-480.0,0.00022986,3]
[380061086,1755522644739,-285.413518,0.00022986,7]
[380061088,1755522644748,-480.0,0.00022986,3]
[380061090,1755522644758,-480.0,0.00022986,3]
[380061093,1755522644768,-480.0,0.00022986,3]
[380061095,1755522644777,-480.0,0.00022986,3]
[380061097,1755522644787,-480.0,0.00022986,3]
[380061099,1755522644796,-480.0,0.00022986,3]
[380061101,1755522644806,-480.0,0.00022986,3]
[380061102,1755522644816,-322.383977,0.00022986,7]
[380061104,1755522644825,-480.0,0.00022986,3]
[380061106,1755522644835,-322.383977,0.00022986,7]
[380061108,1755522644844,-151.0,0.00022986,7]
[380061110,1755522644853,-480.0,0.00022986,3]
[380061112,1755522644863,-151.0,0.00022986,7]
[380061114,1755522644873,-463.10940949,0.00022986,3]
[380061116,1755522644883,-151.0,0.00022986,7]
[380061118,1755522644892,-151.0,0.00022986,7]
[380061120,1755522644901,-480.0,0.00022986,3]
[380061122,1755522644911,-480.0,0.00022986,3]
[380061124,1755522644920,-480.0,0.00022986,3]
[380061126,1755522644929,-151.0,0.00022986,7]
[380061128,1755522644939,-151.0,0.00022986,7]
[380061130,1755522644948,-409.50184506,0.00022986,3]
[380061132,1755522644957,-153.931987,0.00022986,7]
[380061134,1755522644966,-462.00920891,0.00022986,3]
[380061136,1755522644976,-480.0,0.00022986,3]
[380061138,1755522644985,-480.0,0.00022986,3]
[380061140,1755522644994,-151.0,0.00022986,7]
[380061142,1755522645004,-814.63,0.00022986,3]
[380061144,1755522645013,-1947.05,0.00022986,3]
[380061146,1755522645023,-480.0,0.00022986,3]
[380061148,1755522645032,-480.0,0.00022986,3]
[380061150,1755522645041,-4106.52,0.00022986,3]
[380061152,1755522645051,-480.0,0.00022986,3]
[380061154,1755522645060,-480.0,0.00022986,3]
[380061156,1755522645070,-1580.08,0.00022986,3]
[380061158,1755522645081,-480.0,0.00022986,3]
[380061160,1755522645090,-462.30711648,0.00022986,3]
[380061162,1755522645100,-480.0,0.00022986,3]
[380061164,1755522645109,-460.82955829,0.00022986,3]
[380061166,1755522645119,-480.0,0.00022986,3]
[380061168,1755522645128,-480.0,0.00022986,3]
[380061170,1755522645137,-460.73866054,0.00022986,3]
[380061172,1755522645146,-460.0,0.00022986,3]
[380061174,1755522645155,-480.0,0.00022986,3]
[380061176,1755522645165,-480.0,0.00022986,3]
[380061178,1755522645174,-480.0,0.00022986,3]
[380061180,1755522645184,-1673.73,0.00022986,3]
[380061182,1755522645193,-480.0,0.00022986,3]
[380061184,1755522645203,-480.0,0.00022986,3]
[380061186,1755522645213,-1000.0,0.00022986,3]
[380061188,1755522645222,-480.0,0.00022986,3]
[380061190,1755522645231,-462.21419691,0.00022986,3]
[380061192,1755522645240,-480.0,0.00022986,3]
[380061194,1755522645250,-480.0,0.00022986,3]
[380061196,1755522645260,-526.56191669,0.00022986,3]
[380061198,1755522645269,-480.0,0.00022986,3]
[380061200,1755522645279,-442.12267141,0.00022986,3]
[380061202,1755522645288,-480.0,0.00022986,3]
[380061204,1755522645298,-480.0,0.00022986,3]
[380061205,1755522645307,-480.0,0.00022986,3]
[380061207,1755522645316,-462.21731902,0.00022986,3]
[380061210,1755522645326,-461.87690277,0.00022986,3]
[380061212,1755522645336,-480.0,0.00022986,3]
[380061214,1755522645345,-480.0,0.00022986,3]
[380061216,1755522645356,-480.0,0.00022986,3]
[380061218,1755522645366,-460.48281633,0.00022986,3]
[380061220,1755522645376,-480.0,0.00022986,3]
[380061222,1755522645395,-272.30489438,0.00022986,3]
[380061224,1755522645406,-449.648159,0.00022986,3]
[380061226,1755522645416,-480.0,0.00022986,3]
[380061228,1755522645425,-480.0,0.00022986,3]
[380061229,1755522645434,-480.0,0.00022986,3]
[380061231,1755522645443,-480.0,0.00022986,3]
[380061234,1755522645455,-500.71,0.00022986,3]
[380061236,1755522645466,-480.0,0.00022986,3]
[380061237,1755522645476,-480.0,0.00022986,3]
[380061239,1755522645486,-540.31,0.00022986,3]
[380061241,1755522645495,-480.0,0.00022986,3]
[380061243,1755522645504,-460.73291244,0.00022986,3]
[380061245,1755522645513,-480.0,0.00022986,3]
[380061247,1755522645522,-480.0,0.00022986,3]
[380061249,1755522645532,-480.0,0.00022986,3]
[380061251,1755522645541,-480.0,0.00022986,3]
[380061253,1755522645550,-519.54821601,0.00022986,3]
[380061255,1755522645559,-151.0,0.00022987,7]
[380061257,1755522645568,-247.889703,0.00022987,7]
[380061259,1755522645578,-151.0,0.00022987,7]
[380061260,1755522645593,-151.0,0.00022987,7]
[380061261,1755522645602,-480.0,0.00022987,2]
[380061262,1755522645613,-480.0,0.00022987,3]
[380061263,1755522645622,-480.0,0.00022987,3]
[380061264,1755522645633,-285.413518,0.00022987,7]
[380061265,1755522645643,-285.413518,0.00022987,7]
[380061266,1755522645652,-480.0,0.00022987,3]
[380061267,1755522645662,-322.383977,0.00022987,7]
[380061268,1755522645672,-480.0,0.00022987,3]
[380061270,1755522645682,-322.383977,0.00022987,7]
[380061271,1755522645691,-151.0,0.00022987,7]
[380061273,1755522645700,-151.0,0.00022987,7]
[380061276,1755522645709,-480.0,0.00022987,3]
[380061278,1755522645718,-480.0,0.00022987,3]
[380061279,1755522645728,-480.0,0.00022987,3]
[380061280,1755522645737,-151.0,0.00022987,7]
[380061282,1755522645747,-480.0,0.00022987,3]
[380061284,1755522645756,-489.34,0.00022987,3]
[380061286,1755522645766,-460.0,0.00022987,3]
[380061287,1755522645775,-480.0,0.00022987,3]
[380061289,1755522645785,-578.06,0.00022987,3]
[380061290,1755522645794,-480.0,0.00022987,3]
[380061291,1755522645805,-480.0,0.00022987,3]
[380061292,1755522645817,-461.14662951,0.00022987,3]
[380061293,1755522645827,-460.0,0.00022987,3]
[380061296,1755522645836,-460.0,0.00022987,3]
[380061297,1755522645846,-659.14675887,0.00022989,2]
[380061298,1755522645855,-151.0,0.00022989,7]
[380061299,1755522645865,-151.0,0.00022989,7]
[380061300,1755522645873,-151.0,0.00022989,7]
[380061301,1755522645883,-151.957019,0.00022989,7]
[380061302,1755522645893,-151.0,0.00022989,7]
[380061303,1755522645902,-151.0,0.00022989,7]
[380061304,1755522645911,-151.0,0.00022989,7]
[380061305,1755522645920,-258.728575,0.00022989,7]
[380061306,1755522645929,-151.0,0.00022989,7]
[380061307,1755522645939,-100000.0,0.0002299,2]
[380061308,1755522645948,-151.0,0.0002299,7]
[380061309,1755522645957,-156.910426,0.0002299,7]
[380061310,1755522645966,-151.0,0.0002299,7]
[380061311,1755522645975,-151.0,0.0002299,7]
[380061312,1755522645985,-151.0,0.0002299,7]
[380061313,1755522645994,-151.0,0.0002299,7]
[380061314,1755522646003,-285.413518,0.0002299,7]
[380061315,1755522646012,-285.413518,0.0002299,7]
[380061316,1755522646022,-322.383977,0.0002299,7]
[380061317,1755522646034,-322.383977,0.0002299,7]
[380061318,1755522646043,-151.0,0.0002299,7]
[380061319,1755522646052,-151.0,0.0002299,7]
[380061320,1755522646142,-151.0,0.0002299,7]
[380061321,1755522646152,-188.930155,0.0002299,7]
[380061322,1755522646161,-608.8908891,0.00023,2]
[380061323,1755522646171,-151.0,0.00023,2]
[380061324,1755522646180,-151.0,0.00023,2]
[380061325,1755522646190,-151.0,0.00023,2]
[380061326,1755522646199,-151.0,0.00023,2]
[380061327,1755522646209,-232.18122251,0.00023,3]
[380061328,1755522646219,-263.83488491,0.00023,2]
[380061329,1755522646229,-152.24880878,0.00023,2]
[380061330,1755522646239,-210.71251693,0.00023,2]
[380061331,1755522646250,-151.0,0.00023,2]
[380061332,1755522646260,-151.0,0.00023,2]
[380061333,1755522646270,-151.0,0.00023,2]
[380061334,1755522646280,-500.0,0.00023,2]
[380061335,1755522646290,-151.0,0.00023,2]
[380061336,1755522646299,-151.0,0.0002301,2]
[380061337,1755522646310,-184.936658,0.0002301,7]
[380061338,1755522646319,-151.0,0.0002301,7]
[380061339,1755522646331,-151.0,0.0002301,7]
[380061340,1755522646341,-151.0,0.0002301,7]
[380061341,1755522646350,-151.0,0.0002301,7]
[380061342,1755522646360,-151.0,0.0002301,7]
[380061343,1755522646370,-151.0,0.0002301,7]
[380061344,1755522646379,-151.0,0.0002301,7]
[380061345,1755522646389,-151.0,0.0002301,7]
[380061346,1755522646399,-285.413518,0.0002301,7]
[380061347,1755522646408,-285.413518,0.0002301,7]
[380061348,1755522646418,-322.383977,0.0002301,7]
[380061349,1755522646427,-322.383977,0.0002301,7]
[380061350,1755522646436,-151.0,0.0002301,7]
[380061351,1755522646446,-151.0,0.0002301,7]
[380061352,1755522646455,-151.0,0.0002301,7]
[380061353,1755522646465,-66231.4296334,0.00023015,2]
[380061354,1755522646475,-151.0,0.00023015,7]
[380061355,1755522646485,-151.0,0.00023015,7]
[380061356,1755522646493,-151.0,0.00023015,7]
[380061357,1755522646503,-151.0,0.00023015,7]
[380061358,1755522646512,-151.0,0.00023015,7]
[380061359,1755522646521,-151.0,0.00023015,7]
[380061360,1755522646530,-151.0,0.00023015,7]
[380061361,1755522646539,-151.0,0.00023015,7]
[380061362,1755522646552,-151.0,0.00023015,7]
[380061363,1755522646561,-151.0,0.00023015,7]
[380061364,1755522646571,-151.0,0.00023015,7]
[380061365,1755522646580,-285.413518,0.00023015,7]
[380061366,1755522646592,-285.413518,0.00023015,7]
[380061367,1755522646602,-322.383977,0.00023015,7]
[380061368,1755522646614,-322.383977,0.00023015,7]
[380061369,1755522646623,-151.0,0.00023015,7]
[380061370,1755522646634,-151.0,0.00023015,7]
[380061371,1755522646643,-500.0,0.00023017,3]
[380061372,1755522646652,-500.0,0.00023017,3]
[380061373,1755522646663,-500.0,0.00023017,3]
[380061374,1755522646672,-2204.27,0.00023017,3]
[380061375,1755522646681,-2204.27,0.00023017,3]
[380061376,1755522646690,-2204.27,0.00023017,3]
[380061377,1755522646699,-151.0,0.00023018,7]
[380061378,1755522646708,-151.0,0.00023018,7]
[380061379,1755522646717,-152.827228,0.00023018,7]
[380061380,1755522646726,-151.626342,0.00023018,7]
[380061381,1755522646736,-151.0,0.00023018,7]
[380061382,1755522646745,-151.0,0.00023018,7]
[380061383,1755522646754,-151.0,0.00023018,7]
[380061384,1755522646764,-151.0,0.00023018,7]
[380061385,1755522646773,-160.0,0.00023022,2]
[380061386,1755522646783,-1000.0,0.00023038,2]
[380061387,1755522646792,-480.0,0.00023068,3]
[380061388,1755522646801,-480.0,0.00023068,3]
[380061389,1755522646811,-480.0,0.00023068,3]
[380061390,1755522646820,-480.0,0.00023068,3]
[380061391,1755522646829,-1868.82,0.00023068,3]
[380061392,1755522646838,-480.0,0.00023068,3]
[380061393,1755522646847,-421.84080345,0.00023068,3]
[380061394,1755522646859,-480.0,0.00023068,3]
[380061395,1755522646868,-480.0,0.00023068,3]
[380061396,1755522646878,-605.76018746,0.00023068,3]
[380061397,1755522646887,-480.0,0.00023068,3]
[380061398,1755522646896,-480.0,0.00023068,3]
[380061399,1755522646905,-317.2146505,0.00023068,3]
[380061400,1755522646914,-420.0,0.00023068,3]
[380061401,1755522646923,-1302.73,0.00023068,3]
[380061402,1755522646932,-480.0,0.00023068,3]
[380061403,1755522646941,-480.0,0.00023068,3]
[380061404,1755522646951,-420.0,0.00023068,3]
[380061405,1755522646960,-236.72,0.00023068,3]
[380061406,1755522646969,-480.0,0.00023068,3]
[380061407,1755522646979,-420.0,0.00023068,3]
[380061408,1755522646988,-227.19947451,0.00023068,3]
[380061409,1755522646997,-197.7463651,0.00023068,3]
[380061410,1755522647007,-480.0,0.00023068,3]
[380061411,1755522647016,-420.0,0.00023068,3]
[380061412,1755522647026,-480.0,0.00023068,3]
[380061413,1755522647035,-420.0,0.00023068,3]
[380061414,1755522647044,-151.0,0.00023068,7]
[380061415,1755522647054,-420.0,0.00023068,3]
[380061416,1755522647062,-525.58411792,0.00023068,3]
[380061417,1755522647072,-237.44,0.00023068,3]
[380061418,1755522647082,-480.0,0.00023068,3]
[380061419,1755522647091,-480.0,0.00023068,3]
[380061420,1755522647100,-480.0,0.00023068,3]
[380061421,1755522647110,-480.0,0.00023068,3]
[380061422,1755522647120,-480.0,0.00023068,3]
[380061423,1755522647129,-423.8280509,0.00023068,3]
[380061424,1755522647139,-285.413518,0.00023068,7]
[380061425,1755522647148,-1959.53,0.00023068,3]
[380061426,1755522647158,-285.413518,0.00023068,7]
[380061427,1755522647167,-423.71217001,0.00023068,3]
[380061428,1755522647176,-3358.6,0.00023068,3]
[380061429,1755522647185,-480.0,0.00023068,3]
[380061430,1755522647195,-322.383977,0.00023068,7]
[380061431,1755522647204,-322.383977,0.00023068,7]
[380061432,1755522647214,-480.0,0.00023068,3]
[380061433,1755522647223,-480.0,0.00023068,3]
[380061434,1755522647232,-480.0,0.00023068,3]
[380061435,1755522647242,-480.0,0.00023068,3]
[380061436,1755522647251,-151.0,0.00023068,7]
[380061437,1755522647261,-151.0,0.00023068,7]
[380061438,1755522647271,-601.1,0.00023068,3]
[380061439,1755522647280,-513.90997104,0.00023068,3]